lending/lending_fUSD_20250316
["ID","MTS","AMOUNT","RATE_DAILY","PERIOD"]
[356229878,1742111509132,-1211.56,0.00044109,120]
[356229879,1742111509142,-500.0,0.00044109,120]
[356229880,1742111509152,-965.9,0.00044109,120]
[356229881,1742111509162,-500.0,0.00044109,120]
[356229882,1742111509172,-500.0,0.00044109,120]
[356229883,1742111509182,-500.0,0.00044109,120]
[356229884,1742111509192,-500.0,0.00044109,120]
[356229885,1742111509202,-300.0,0.00044109,120]
[356229886,1742111509211,-960.56,0.00044109,120]
[356229887,1742111509222,-500.0,0.00044109,120]
[356229888,1742111509232,-1545.52,0.00044109,7]
[356229889,1742111509242,-512.78,0.00044109,120]
[356229890,1742111509252,-564.0,0.00044109,120]
[356229891,1742111509263,-500.0,0.00044109,120]
[356229892,1742111509273,-1248.52,0.00044109,120]
[356229893,1742111509283,-953.92,0.00044109,120]
[356229894,1742111509292,-500.0,0.00044109,120]
[356229895,1742111509302,-500.0,0.00044109,120]
[356229896,1742111509312,-1217.97,0.00044109,120]
[356229897,1742111509322,-1765.6,0.00044109,120]
[356229898,1742111509379,-251.15573218,0.00044109,120]
[356229899,1742111509392,-500.0,0.00044109,120]
[356229900,1742111509403,-607.57,0.00044109,120]
[356229901,1742111509413,-706.52,0.00044109,120]
[356229902,1742111509422,-500.0,0.00044109,120]
[356229903,1742111509432,-500.0,0.00044109,60]
[356229904,1742111509445,-500.0,0.00044109,120]
[356229905,1742111509455,-529.2,0.00044109,120]
[356229906,1742111509467,-1518.45,0.00044109,120]
[356229907,1742111509476,-500.0,0.00044109,120]
[356229908,1742111509486,-500.0,0.00044109,120]
[356229909,1742111509497,-500.0,0.00044109,120]
[356229910,1742111509509,-500.0,0.00044109,120]
[356229911,1742111509519,-785.48,0.00044109,120]
[356229912,1742111509529,-500.0,0.00044109,120]
[356229913,1742111509540,-1112.76,0.00044109,120]
[356229914,1742111509551,-4687.06,0.00044109,120]
[356229915,1742111509560,-660.72,0.00044109,120]
[356229916,1742111509570,-500.0,0.00044109,120]
[356229917,1742111509579,-500.0,0.00044109,120]
[356229918,1742111509589,-500.0,0.00044109,120]
[356229919,1742111509598,-1384.4,0.00044109,120]
[356229920,1742111509607,-731.21,0.00044109,120]
[356229921,1742111509617,-222.59971066,0.00044109,120]
[356229922,1742111509627,-549.87,0.00044109,120]
[356229923,1742111509636,-942.3,0.00044109,120]
[356229924,1742111509646,-729.09,0.00044109,120]
[356229925,1742111509656,-859.7,0.00044109,120]
[356229926,1742111509665,-617.27,0.00044109,120]
[356229927,1742111509675,-500.0,0.00044109,120]
[356229928,1742111509684,-500.0,0.00044109,120]
[356229929,1742111509694,-550.81,0.00044109,120]
[356229930,1742111509703,-947.27,0.00044109,120]
[356229931,1742111509712,-500.0,0.00044109,120]
[356229932,1742111509722,-6199.65,0.00044109,2]
[356229933,1742111509731,-500.0,0.00044109,120]
[356229934,1742111509741,-500.0,0.00044109,120]
[356229935,1742111509750,-500.0,0.00044109,120]
[356229936,1742111509760,-500.0,0.00044109,120]
[356229937,1742111509773,-500.0,0.00044109,120]
[356229938,1742111509788,-500.0,0.00044109,120]
[356229939,1742111509798,-753.92,0.00044109,120]
[356229940,1742111509807,-553.96,0.00044109,120]
[356229941,1742111509818,-500.0,0.00044109,120]
[356229942,1742111509827,-628.57028949,0.00044109,120]
[356229943,1742111509836,-902.3,0.00044109,120]
[356229944,1742111509846,-753.45,0.00044109,120]
[356229945,1742111509856,-996.38,0.00044109,120]
[356229946,1742111509866,-1743.26,0.00044109,120]
[356229947,1742111509876,-443.84276277,0.00044109,120]
[356229948,1742111509885,-500.0,0.00044109,120]
[356229949,1742111509895,-751.5,0.00044109,120]
[356229950,1742111509905,-974.64,0.00044109,120]
[356229951,1742111509915,-688.54,0.00044109,120]
[356229952,1742111509925,-756.01,0.00044109,30]
[356229953,1742111509934,-360.48578488,0.00044109,120]
[356229954,1742111509944,-1143.47,0.00044109,120]
[356229955,1742111509954,-1395.42,0.00044109,100]
[356229956,1742111509963,-853.98,0.00044109,120]
[356229957,1742111509972,-438.75902939,0.00044109,120]
[356229958,1742111509982,-500.0,0.00044109,120]
[356229959,1742111509991,-976.91,0.00044109,120]
[356229960,1742111510001,-891.22,0.00044109,120]
[356229961,1742111510010,-266.90347755,0.00044109,120]
[356229962,1742111510020,-510.58,0.00044109,120]
[356229963,1742111510029,-500.0,0.00044109,120]
[356229964,1742111510038,-1217.97,0.00044109,120]
[356229965,1742111510047,-500.0,0.00044109,120]
[356229966,1742111510057,-598.8,0.00044109,120]
[356229967,1742111510066,-1307.29,0.00044109,120]
[356229968,1742111510075,-532.87,0.00044109,120]
[356229969,1742111510085,-559.89,0.00044109,120]
[356229970,1742111510096,-500.0,0.00044109,120]
[356229971,1742111510106,-1344.17,0.00044109,120]
[356229972,1742111510116,-500.0,0.00044109,120]
[356229973,1742111510126,-650.81,0.00044109,120]
[356229974,1742111510135,-1282.95,0.00044109,120]
[356229975,1742111510145,-500.0,0.00044109,120]
[356229976,1742111510155,-667.69,0.00044109,120]
[356229977,1742111510164,-1782.47,0.00044109,120]
[356229978,1742111510174,-500.0,0.00044109,120]
[356229979,1742111510183,-607.98,0.00044109,120]
[356229980,1742111510195,-930.36,0.00044109,120]
[356229981,1742111510208,-500.0,0.00044109,120]
[356229982,1742111510219,-500.0,0.00044109,120]
[356229983,1742111510228,-500.0,0.00044109,120]
[356229984,1742111510239,-798.59,0.00044109,120]
[356229985,1742111510249,-500.0,0.00044109,120]
[356229986,1742111510258,-500.0,0.00044109,120]
[356229987,1742111510268,-500.0,0.00044109,120]
[356229988,1742111510278,-500.0,0.00044109,120]
[356229989,1742111510287,-909.49,0.00044109,120]
[356229990,1742111510296,-505.94,0.00044109,120]
[356229991,1742111510306,-1398.91,0.00044109,120]
[356229992,1742111510315,-500.0,0.00044109,120]
[356229993,1742111510325,-904.9,0.00044109,120]
[356229994,1742111510335,-518.21,0.00044109,120]
[356229995,1742111510344,-736.88,0.00044109,120]
[356229996,1742111510354,-2706.13,0.00044109,120]
[356229997,1742111510364,-502.16,0.00044109,120]
[356229998,1742111510373,-1096.96,0.00044109,120]
[356229999,1742111510383,-500.0,0.00044109,120]
[356230000,1742111510392,-500.0,0.00044109,120]
[356230001,1742111510401,-771.46,0.00044109,120]
[356230002,1742111510410,-1943.0,0.00044109,120]
[356230003,1742111510420,-500.0,0.00044109,120]
[356230004,1742111510429,-2893.62,0.00044109,120]
[356230005,1742111510439,-594.97,0.00044109,120]
[356230006,1742111510448,-559.09,0.00044109,120]
[356230007,1742111510457,-608.45,0.00044109,120]
[356230008,1742111510466,-1099.67,0.00044109,120]
[356230009,1742111510475,-557.42,0.00044109,120]
[356230010,1742111510484,-778.96,0.00044109,120]
[356230011,1742111510493,-687.15,0.00044109,120]
[356230012,1742111510503,-562.21,0.00044109,120]
[356230013,1742111510512,-500.0,0.00044109,120]
[356230014,1742111510521,-500.0,0.00044109,120]
[356230015,1742111510535,-776.36,0.00044109,120]
[356230016,1742111510544,-722.28,0.00044109,120]
[356230017,1742111510554,-500.0,0.00044109,120]
[356230018,1742111510563,-659.6,0.00044109,120]
[356230019,1742111510573,-500.0,0.00044109,120]
[356230020,1742111510582,-1067.18,0.00044109,120]
[356230021,1742111510592,-400.60107085,0.00044109,120]
[356230022,1742111510601,-303.60970841,0.00044109,120]
[356230023,1742111510611,-2491.91,0.00044109,120]
[356230024,1742111510620,-500.0,0.00044109,120]
[356230025,1742111510630,-697.39,0.00044109,120]
[356230026,1742111510640,-983.13,0.00044109,120]
[356230027,1742111510650,-500.0,0.00044109,120]
[356230028,1742111510662,-775.18,0.00044109,120]
[356230029,1742111510671,-500.0,0.00044109,120]
[356230030,1742111510680,-689.44,0.00044109,120]
[356230031,1742111510690,-500.0,0.00044109,120]
[356230032,1742111510699,-627.84,0.00044109,120]
[356230033,1742111510708,-821.48,0.00044109,120]
[356230034,1742111510718,-539.91,0.00044109,120]
[356230035,1742111510727,-522.34,0.00044109,120]
[356230036,1742111510736,-805.93,0.00044109,120]
[356230037,1742111510746,-500.0,0.00044109,120]
[356230038,1742111510755,-570.1,0.00044109,120]
[356230039,1742111510765,-586.65,0.00044109,120]
[356230040,1742111510777,-500.0,0.00044109,120]
[356230041,1742111510787,-743.89,0.00044109,120]
[356230042,1742111510796,-938.83,0.00044109,120]
[356230043,1742111510806,-2055.51,0.00044109,120]
[356230044,1742111510816,-500.0,0.00044109,120]
[356230045,1742111510825,-500.0,0.00044109,120]
[356230046,1742111510834,-1717.26,0.00044109,120]
[356230047,1742111510843,-500.0,0.00044109,120]
[356230048,1742111510853,-500.0,0.00044109,120]
[356230049,1742111510863,-500.0,0.00044109,120]
[356230050,1742111510871,-519.06,0.00044109,120]
[356230051,1742111510881,-615.85,0.00044109,120]
[356230052,1742111510890,-952.36,0.00044109,120]
[356230053,1742111510899,-500.0,0.00044109,120]
[356230054,1742111510908,-1162.68,0.00044109,120]
[356230055,1742111510918,-733.04,0.00044109,120]
[356230056,1742111510927,-500.0,0.00044109,120]
[356230057,1742111510937,-508.68,0.00044109,120]
[356230058,1742111510947,-500.0,0.00044109,120]
[356230059,1742111510956,-500.0,0.00044109,120]
[356230060,1742111510967,-761.29,0.00044109,120]
[356230061,1742111510978,-1074.18,0.00044109,120]
[356230062,1742111510988,-500.0,0.00044109,120]
[356230063,1742111510998,-500.0,0.00044109,120]
[356230064,1742111511007,-500.0,0.00044109,120]
[356230065,1742111511016,-150.0594209,0.00044109,120]
[356230066,1742111511025,-500.0,0.00044109,120]
[356230067,1742111511035,-655.56,0.00044109,120]
[356230068,1742111511044,-706.21,0.00044109,120]
[356230069,1742111511054,-927.45,0.00044109,120]
[356230070,1742111511063,-1351.46,0.00044109,120]
[356230071,1742111511072,-975.01,0.00044109,120]
[356230072,1742111511082,-1101.69,0.00044109,120]
[356230073,1742111511091,-828.2,0.00044109,120]
[356230074,1742111511101,-824.69,0.00044137,2]
[356230075,1742111511111,-150.0,0.00044138,30]
[356230076,1742111511120,-150.0,0.00044204,30]
[356230077,1742111511131,-150.0,0.00044212,30]
[356230078,1742111511140,-150.0,0.00044222,30]
[356230079,1742111511149,-307.12,0.00044239,2]
[356230080,1742111511159,-204.84,0.00044239,2]
[356230081,1742111511168,-150.0,0.0004427,30]
[356230082,1742111511178,-150.0,0.00044289,30]
[356230083,1742111511187,-3250.54768454,0.00044299,120]
[356230084,1742111511196,-3250.54768454,0.00044299,120]
[356230085,1742111511205,-3250.54768454,0.00044299,120]
[356230086,1742111511214,-3250.54768454,0.00044299,120]
[356230087,1742111511223,-3250.54768454,0.00044299,120]
[356230088,1742111511231,-3250.54768454,0.00044299,120]
[356230089,1742111511240,-3250.54768454,0.00044299,120]
[356230090,1742111511249,-3250.54768454,0.00044299,120]
[356230091,1742111511258,-3250.54768454,0.00044299,120]
[356230092,1742111511268,-3250.54768454,0.00044299,120]
[356230093,1742111511278,-159592.80829819,0.000443,5]
[356230094,1742111511477,-5570.45453968,0.000443,5]
[356230118,1742112631958,-250.0,0.00019,2]
[356230120,1742112631972,-773.85534694,0.000209,2]
[356230122,1742112631982,-300.0,0.00021,2]
[356230124,1742112631993,-371.11,0.00022066,2]
[356230126,1742112632004,-371.11,0.0002433,2]
[356230127,1742112632014,-371.11,0.00026593,2]
[356230128,1742112632024,-268.61,0.00026849,2]
[356230129,1742112632034,-57.40336117,0.0002735,2]
[356230130,1742112632094,-716.45198575,0.0002735,2]
[356230131,1742112632104,-371.11,0.00028857,2]
[356230132,1742112632114,-371.11,0.00031121,2]
[356230133,1742112632126,-3623.67,0.00031934,2]
[356230134,1742112632137,-268.61,0.00032646,2]
[356230135,1742112632147,-534.93487921,0.000329,6]
[356230136,1742112632159,-371.11,0.00033385,2]
[356230137,1742112632170,-773.85534692,0.000338,2]
[356230138,1742112632181,-200.0,0.00035209,30]
[356230139,1742112632191,-534.93487915,0.0003521,7]
[356230140,1742112632202,-371.11,0.00035649,2]
[356230141,1742112632212,-155.22,0.00035707,2]
[356230142,1742112632222,-159.21,0.00035724,120]
[356230143,1742112632232,-150.0,0.00035823,2]
[356230144,1742112632243,-322.5435,0.00036602,2]
[356230145,1742112632253,-2800.802,0.00036602,45]
[356230146,1742112632263,-1000.0,0.00036701,2]
[356230147,1742112632274,-325136.852316,0.00036702,3]
[356230148,1742112632286,-177118.425661,0.00036702,3]
[356230149,1742112632296,-150.42,0.00036702,2]
[356230150,1742112632311,-150.42,0.00036702,2]
[356230151,1742112632320,-999.0,0.00036711,120]
[356230152,1742112632331,-604.0,0.00036712,5]
[356230153,1742112632341,-155797.69203251,0.00036712,7]
[356230154,1742112632354,-887.84992617,0.00036712,7]
[356230155,1742112632366,-250.22877249,0.00036712,7]
[356230156,1742112632379,-368.49929451,0.00036712,7]
[356230158,1742112632391,-301.65617127,0.00036712,7]
[356230160,1742112632407,-593727.16382405,0.00036712,7]
[356230161,1742112632416,-47361.1282894,0.00036712,7]
[356230162,1742112632426,-2093.00498022,0.0003688,9]
[356230163,1742112632437,-2000.0,0.0003708,120]
[356230164,1742112632448,-1000.0,0.00037255,2]
[356230165,1742112632459,-534.93487915,0.00037521,7]
[356230166,1742112632470,-371.11,0.00037913,2]
[356230167,1742112632480,-150.0,0.0003798,2]
[356230168,1742112632490,-1045.39091459,0.00038081,120]
[356230169,1742112632500,-268.61,0.00038443,2]
[356230170,1742112632510,-200.0,0.00038486,2]
[356230171,1742112632519,-250.0,0.00038486,2]
[356230172,1742112632529,-200.0,0.00039178,120]
[356230173,1742112632540,-150.0,0.00039349,2]
[356230174,1742112632550,-154.86986133,0.00039717,13]
[356230176,1742112632559,-534.93487915,0.00039831,8]
[356230178,1742112632568,-213.0,0.00039862,20]
[356230179,1742112632578,-300.91054695,0.0003988,30]
[356230181,1742112632588,-760.13362196,0.00040021,2]
[356230182,1742112632598,-371.11,0.00040177,2]
[356230183,1742112632608,-213.0,0.00040273,20]
[356230184,1742112632619,-21675.7901544,0.00040429,3]
[356230185,1742112632629,-14759.8688051,0.00040429,3]
[356230186,1742112632639,-150.0,0.00040438,7]
[356230187,1742112632649,-150.0,0.00040438,7]
[356230188,1742112632658,-150.0,0.00040438,7]
[356230189,1742112632669,-284.04799923,0.00040438,7]
[356230191,1742112632680,-23900.0,0.0004044,2]
[356230193,1742112632690,-1000.0,0.000405,2]
[356230194,1742112632699,-159.21,0.0004065,120]
[356230195,1742112632709,-213.0,0.00040684,20]
[356230196,1742112632719,-150.0,0.00040719,2]
[356230198,1742112632729,-150.0,0.00040937,7]
[356230199,1742112632738,-500.56784941,0.00041073,5]
[356230200,1742112632748,-519.88806082,0.00041085,15]
[356230201,1742112632758,-86703.1606177,0.00041085,3]
[356230202,1742112632768,-88559.2128304,0.00041085,3]
[356230203,1742112632778,-760.13362196,0.00041087,2]
[356230204,1742112632788,-1313.51561,0.00041095,31]
[356230205,1742112632798,-156.801184,0.00041095,31]
[356230206,1742112632807,-151.21597,0.00041095,31]
[356230207,1742112632817,-1612.967399,0.00041095,31]
[356230208,1742112632827,-500.0,0.00041095,31]
[356230209,1742112632837,-500.0,0.00041095,31]
[356230210,1742112632847,-375.51009982,0.00041095,31]
[356230211,1742112632857,-504.93468817,0.00041095,31]
[356230212,1742112632866,-769.16,0.00041095,31]
[356230213,1742112632877,-350.0,0.00041095,2]
[356230214,1742112632886,-546.94,0.00041095,31]
[356230215,1742112632896,-500.0,0.00041095,31]
[356230216,1742112632906,-500.0,0.00041095,31]
[356230217,1742112632917,-500.0,0.00041095,31]
[356230218,1742112632927,-500.0,0.00041095,31]
[356230219,1742112632938,-500.0,0.00041095,31]
[356230220,1742112632947,-500.0,0.00041095,31]
[356230221,1742112632958,-500.0,0.00041095,31]
[356230222,1742112632968,-500.0,0.00041095,31]
[356230223,1742112632978,-500.0,0.00041095,31]
[356230224,1742112632988,-535.19,0.00041095,10]
[356230225,1742112632999,-500.0,0.00041095,31]
[356230226,1742112633009,-500.0,0.00041095,31]
[356230227,1742112633019,-300.0,0.00041095,31]
[356230228,1742112633030,-500.0,0.00041095,31]
[356230229,1742112633039,-500.0,0.00041095,31]
[356230230,1742112633049,-500.0,0.00041095,31]
[356230231,1742112633059,-500.0,0.00041095,31]
[356230232,1742112633069,-500.0,0.00041095,31]
[356230233,1742112633083,-500.0,0.00041095,31]
[356230234,1742112633093,-500.0,0.00041095,31]
[356230235,1742112633103,-500.0,0.00041095,31]
[356230236,1742112633113,-500.0,0.00041095,31]
[356230237,1742112633123,-500.0,0.00041095,31]
[356230238,1742112633132,-500.0,0.00041095,31]
[356230239,1742112633143,-692.2,0.00041095,31]
[356230240,1742112633153,-500.0,0.00041095,31]
[356230241,1742112633164,-500.0,0.00041095,31]
[356230242,1742112633174,-500.0,0.00041095,31]
[356230243,1742112633184,-502.15526361,0.00041095,31]
[356230244,1742112633194,-500.0,0.00041095,31]
[356230245,1742112633203,-500.0,0.00041095,31]
[356230246,1742112633214,-500.0,0.00041095,31]
[356230247,1742112633224,-500.0,0.00041095,31]
[356230248,1742112633233,-500.0,0.00041095,31]
[356230249,1742112633243,-500.0,0.00041095,31]
[356230250,1742112633253,-500.0,0.00041095,31]
[356230251,1742112633263,-500.0,0.00041095,31]
[356230252,1742112633273,-500.0,0.00041095,31]
[356230253,1742112633282,-571.73,0.00041095,31]
[356230254,1742112633292,-500.0,0.00041095,31]
[356230255,1742112633302,-500.0,0.00041095,31]
[356230256,1742112633311,-500.0,0.00041095,31]
[356230257,1742112633321,-213.0,0.00041095,20]
[356230258,1742112633330,-500.0,0.00041095,31]
[356230259,1742112633341,-613.34,0.00041095,31]
[356230260,1742112633351,-500.0,0.00041095,31]
[356230261,1742112633361,-551.99,0.00041095,31]
[356230262,1742112633371,-500.73073463,0.00041095,31]
[356230263,1742112633381,-500.0,0.00041095,31]
[356230264,1742112633391,-500.0,0.00041095,31]
[356230265,1742112633401,-500.0,0.00041095,31]
[356230266,1742112633411,-500.0,0.00041095,31]
[356230267,1742112633420,-653.76,0.00041095,31]
[356230268,1742112633431,-509.99,0.00041095,2]
[356230269,1742112633441,-500.0,0.00041095,31]
[356230270,1742112633451,-500.0,0.00041095,31]
[356230271,1742112633461,-597.79,0.00041095,31]
[356230272,1742112633471,-500.0,0.00041095,31]
[356230273,1742112633481,-500.0,0.00041095,31]
[356230274,1742112633491,-500.0,0.00041095,31]
[356230275,1742112633502,-500.0,0.00041095,31]
[356230276,1742112633512,-500.0,0.00041095,31]
[356230277,1742112633522,-500.0,0.00041095,31]
[356230278,1742112633532,-605.78,0.00041095,31]
[356230279,1742112633542,-549.84,0.00041095,31]
[356230280,1742112633552,-772.76,0.00041095,7]
[356230281,1742112633562,-500.0,0.00041095,31]
[356230282,1742112633572,-500.0,0.00041095,31]
[356230283,1742112633581,-500.0,0.00041095,31]
[356230284,1742112633591,-500.0,0.00041095,31]
[356230285,1742112633600,-500.0,0.00041095,31]
[356230286,1742112633610,-500.0,0.00041095,31]
[356230287,1742112633620,-624.26,0.00041095,31]
[356230288,1742112633647,-500.0,0.00041095,31]
[356230289,1742112633657,-500.0,0.00041095,31]
[356230290,1742112633667,-500.0,0.00041095,31]
[356230291,1742112633676,-500.0,0.00041095,31]
[356230292,1742112633686,-500.0,0.00041095,31]
[356230293,1742112633696,-500.0,0.00041095,31]
[356230294,1742112633705,-500.0,0.00041095,31]
[356230295,1742112633715,-608.99,0.00041095,31]
[356230296,1742112633724,-241.12767255,0.00041095,31]
[356230297,1742112633734,-500.0,0.00041095,31]
[356230298,1742112633744,-500.0,0.00041095,31]
[356230299,1742112633754,-500.0,0.00041095,31]
[356230300,1742112633764,-500.0,0.00041095,31]
[356230301,1742112633774,-500.0,0.00041095,31]
[356230302,1742112633783,-500.0,0.00041095,31]
[356230303,1742112633793,-500.0,0.00041095,31]
[356230304,1742112633802,-224.00720333,0.00041095,31]
[356230305,1742112633811,-500.0,0.00041095,31]
[356230306,1742112633822,-759.22,0.00041095,31]
[356230307,1742112633832,-500.0,0.00041095,31]
[356230308,1742112633841,-500.0,0.00041095,31]
[356230309,1742112633851,-500.0,0.00041095,31]
[356230310,1742112633860,-500.0,0.00041095,31]
[356230311,1742112633870,-900.74,0.00041095,31]
[356230312,1742112633879,-500.0,0.00041095,31]
[356230313,1742112633889,-819.3,0.00041095,31]
[356230314,1742112633898,-672.08,0.00041095,31]
[356230315,1742112633908,-240.29516846,0.00041095,31]
[356230316,1742112633917,-500.0,0.00041095,31]
[356230317,1742112633927,-500.0,0.00041095,31]
[356230318,1742112633937,-500.0,0.00041095,31]
[356230319,1742112633947,-500.0,0.00041095,31]
[356230320,1742112633956,-500.0,0.00041095,31]
[356230321,1742112633966,-500.0,0.00041095,31]
[356230322,1742112633976,-500.0,0.00041095,31]
[356230323,1742112633986,-500.0,0.00041095,31]
[356230324,1742112633995,-500.0,0.00041095,31]
[356230325,1742112634005,-500.0,0.00041095,31]
[356230326,1742112634015,-500.0,0.00041095,31]
[356230327,1742112634025,-548.48,0.00041095,31]
[356230328,1742112634035,-500.0,0.00041095,31]
[356230329,1742112634046,-500.0,0.00041095,31]
[356230330,1742112634055,-500.0,0.00041095,31]
[356230331,1742112634065,-500.0,0.00041095,31]
[356230332,1742112634075,-500.0,0.00041095,31]
[356230333,1742112634091,-500.0,0.00041095,31]
[356230334,1742112634299,-500.0,0.00041095,31]
[356230335,1742112634311,-500.0,0.00041095,31]
[356230336,1742112634320,-500.0,0.00041095,31]
[356230337,1742112634330,-500.0,0.00041095,31]
[356230338,1742112634340,-500.0,0.00041095,31]
[356230339,1742112634350,-500.0,0.00041095,31]
[356230340,1742112634359,-500.0,0.00041095,31]
[356230341,1742112634370,-500.0,0.00041095,31]
[356230342,1742112634379,-500.0,0.00041095,31]
[356230343,1742112634389,-500.0,0.00041095,31]
[356230344,1742112634400,-500.0,0.00041095,31]
[356230345,1742112634409,-500.0,0.00041095,31]
[356230346,1742112634420,-500.0,0.00041095,31]
[356230347,1742112634431,-445.94825852,0.00041095,31]
[356230348,1742112634441,-1446.81,0.00041095,31]
[356230349,1742112634451,-500.0,0.00041095,31]
[356230350,1742112634460,-500.0,0.00041095,31]
[356230351,1742112634471,-445.50645902,0.00041095,31]
[356230352,1742112634480,-500.0,0.00041095,31]
[356230353,1742112634490,-500.0,0.00041095,31]
[356230354,1742112634500,-500.0,0.00041095,31]
[356230355,1742112634510,-500.0,0.00041095,31]
[356230356,1742112634523,-500.0,0.00041095,31]
[356230357,1742112634532,-500.0,0.00041095,31]
[356230358,1742112634541,-500.0,0.00041095,31]
[356230359,1742112634551,-500.0,0.00041095,31]
[356230360,1742112634560,-500.0,0.00041095,31]
[356230361,1742112634570,-500.0,0.00041095,31]
[356230362,1742112634579,-307.91492532,0.00041095,31]
[356230363,1742112634590,-500.0,0.00041095,31]
[356230364,1742112634599,-500.0,0.00041095,31]
[356230365,1742112634608,-675.73,0.00041095,31]
[356230366,1742112634618,-871.63,0.00041095,31]
[356230367,1742112634627,-500.0,0.00041095,31]
[356230368,1742112634637,-653.64,0.00041095,31]
[356230369,1742112634647,-500.0,0.00041095,31]
[356230370,1742112634656,-641.48,0.00041095,31]
[356230371,1742112634667,-500.0,0.00041095,31]
[356230372,1742112634676,-500.0,0.00041095,31]
[356230373,1742112634686,-500.0,0.00041095,31]
[356230374,1742112634697,-500.0,0.00041095,31]
[356230375,1742112634706,-500.0,0.00041095,31]
[356230376,1742112634716,-500.0,0.00041095,31]
[356230377,1742112634726,-500.0,0.00041095,31]
[356230378,1742112634736,-500.0,0.00041095,31]
[356230379,1742112634746,-863.02,0.00041095,31]
[356230380,1742112634755,-500.0,0.00041095,31]
[356230381,1742112634764,-500.0,0.00041095,31]
[356230382,1742112634774,-500.0,0.00041095,31]
[356230383,1742112634784,-500.0,0.00041095,31]
[356230384,1742112634794,-500.0,0.00041095,31]
[356230385,1742112634803,-500.0,0.00041095,31]
[356230386,1742112634813,-500.0,0.00041095,31]
[356230387,1742112634823,-500.0,0.00041095,31]
[356230388,1742112634833,-500.0,0.00041095,31]
[356230389,1742112634842,-500.0,0.00041095,30]
[356230390,1742112634852,-500.0,0.00041095,31]
[356230391,1742112634862,-500.0,0.00041095,31]
[356230392,1742112634871,-500.0,0.00041095,31]
[356230393,1742112634882,-500.0,0.00041095,31]
[356230394,1742112634892,-500.0,0.00041095,31]
[356230395,1742112634901,-697.71,0.00041095,31]
[356230396,1742112634911,-500.0,0.00041095,31]
[356230397,1742112634921,-500.0,0.00041095,31]
[356230398,1742112634931,-500.0,0.00041095,31]
[356230399,1742112634942,-608.98,0.00041095,31]
[356230400,1742112634951,-500.0,0.00041095,31]
[356230401,1742112634963,-500.0,0.00041095,31]
[356230402,1742112634972,-500.0,0.00041095,31]
[356230403,1742112634982,-643.31,0.00041095,31]
[356230404,1742112634992,-500.0,0.00041095,31]
[356230405,1742112635003,-891.24,0.00041095,31]
[356230406,1742112635014,-1353.07,0.00041095,31]
[356230407,1742112635024,-971.5,0.00041095,31]
[356230408,1742112635034,-500.0,0.00041095,31]
[356230409,1742112635044,-500.0,0.00041095,31]
[356230410,1742112635054,-500.0,0.00041095,31]
[356230411,1742112635064,-500.0,0.00041095,31]
[356230412,1742112635074,-500.0,0.00041095,31]